fUSD/lending_fUSD_20250503
["ID","MTS","AMOUNT","RATE_DAILY","PERIOD"]
[359732508,1746286233170,-450.0,0.00019618,2]
[359732510,1746286233180,-450.0,0.00019618,2]
[359732511,1746286233189,-507.99,0.00019618,2]
[359732513,1746286233198,-450.0,0.00019618,2]
[359732515,1746286233207,-462.93,0.00019618,2]
[359732517,1746286233216,-519.76,0.00019618,2]
[359732519,1746286233226,-450.0,0.00019618,2]
[359732521,1746286233236,-854.72,0.00019618,2]
[359732523,1746286233245,-19705.7,0.00019618,2]
[359732525,1746286233256,-450.0,0.00019618,2]
[359732527,1746286233266,-450.0,0.00019618,2]
[359732530,1746286233285,-2244.42,0.00019618,2]
[359732532,1746286233297,-450.0,0.00019618,2]
[359732534,1746286233307,-499.46,0.00019618,2]
[359732536,1746286233316,-450.0,0.00019618,2]
[359732538,1746286233326,-450.0,0.00019618,2]
[359732540,1746286233335,-450.0,0.00019618,2]
[359732543,1746286233346,-450.0,0.00019618,2]
[359732545,1746286233355,-622.02,0.00019618,2]
[359732547,1746286233365,-1388.75,0.00019618,2]
[359732549,1746286233375,-450.0,0.00019618,2]
[359732551,1746286233384,-450.0,0.00019618,2]
[359732552,1746286233393,-248.28725876,0.00019618,2]
[359732997,1746286238303,-201.71274124,0.00019618,2]
[359732999,1746286238313,-1677.02,0.00019618,2]
[359733001,1746286238323,-376.58923022,0.00019618,2]
[359733003,1746286238332,-450.0,0.00019618,2]
[359733005,1746286238341,-450.0,0.00019618,2]
[359733007,1746286238351,-450.0,0.00019618,2]
[359733009,1746286238361,-670.86,0.00019618,2]
[359733011,1746286238370,-1038.07,0.00019618,2]
[359733013,1746286238379,-450.0,0.00019618,2]
[359733015,1746286238388,-450.0,0.00019618,2]
[359733017,1746286238397,-450.0,0.00019618,2]
[359733019,1746286238407,-450.0,0.00019618,2]
[359733021,1746286238416,-450.0,0.00019618,2]
[359733023,1746286238426,-450.0,0.00019618,2]
[359733025,1746286238435,-647.64,0.00019618,2]
[359733027,1746286238445,-450.0,0.00019618,2]
[359733029,1746286238454,-498.63,0.00019618,2]
[359733031,1746286238464,-450.0,0.00019618,2]
[359733033,1746286238474,-3639.21,0.00019618,2]
[359733035,1746286238483,-450.0,0.00019618,2]
[359733037,1746286238492,-2328.35,0.00019618,2]
[359733039,1746286238501,-450.0,0.00019618,2]
[359733041,1746286238510,-467.3,0.00019618,2]
[359733043,1746286238520,-450.0,0.00019618,2]
[359733045,1746286238529,-3593.04,0.00019618,2]
[359733047,1746286238538,-450.0,0.00019618,2]
[359733049,1746286238547,-450.0,0.00019618,2]
[359733051,1746286238557,-1099.83,0.00019618,2]
[359733053,1746286238566,-450.0,0.00019618,2]
[359733055,1746286238575,-530.7,0.00019618,2]
[359733057,1746286238584,-490.55,0.00019618,2]
[359733059,1746286238593,-450.0,0.00019618,2]
[359733061,1746286238602,-620.5,0.00019618,2]
[359733063,1746286238611,-450.0,0.00019618,2]
[359733065,1746286238621,-450.0,0.00019618,2]
[359733067,1746286238630,-1751.86,0.00019618,2]
[359733069,1746286238639,-450.0,0.00019618,2]
[359733071,1746286238652,-846.25,0.00019618,2]
[359733073,1746286238662,-450.0,0.00019618,2]
[359733075,1746286238671,-628.44,0.00019618,2]
[359733077,1746286238680,-450.0,0.00019618,2]
[359733079,1746286238690,-650.91,0.00019618,2]
[359733081,1746286238699,-450.0,0.00019618,2]
[359733083,1746286238708,-744.85,0.00019618,2]
[359733085,1746286238717,-450.0,0.00019618,2]
[359733087,1746286238726,-410.11033418,0.00019618,2]
[359733089,1746286238736,-557.69,0.00019618,2]
[359733092,1746286238745,-805.77,0.00019618,2]
[359733094,1746286238755,-993.56,0.00019618,2]
[359733096,1746286238764,-450.0,0.00019618,2]
[359733098,1746286238773,-803.43,0.00019618,2]
[359733100,1746286238782,-438.32,0.00019618,2]
[359733102,1746286238791,-450.0,0.00019618,2]
[359733104,1746286238801,-450.0,0.00019618,2]
[359733106,1746286238811,-847.82,0.00019618,2]
[359733108,1746286238820,-1735.52,0.00019618,2]
[359733110,1746286238830,-1219.89,0.00019618,2]
[359733112,1746286238839,-450.0,0.00019618,2]
[359733114,1746286238849,-519.32,0.00019618,2]
[359733116,1746286238858,-450.0,0.00019618,2]
[359733117,1746286238867,-1745.67,0.00019618,2]
[359733119,1746286238876,-467.47,0.00019618,2]
[359733121,1746286238886,-551.34,0.00019618,2]
[359733123,1746286238896,-450.0,0.00019618,2]
[359733125,1746286238906,-5272.7,0.00019618,2]
[359733127,1746286238915,-450.0,0.00019618,2]
[359733129,1746286238924,-450.0,0.00019618,2]
[359733131,1746286238933,-450.0,0.00019618,2]
[359733133,1746286238943,-450.0,0.00019618,2]
[359733143,1746286239197,-5880.59,0.00019618,2]
[359733144,1746286239207,-280.25488685,0.00019618,2]
[359733145,1746286239216,-450.0,0.00019618,2]
[359733146,1746286239226,-450.0,0.00019618,2]
[359733147,1746286239236,-450.0,0.00019618,2]
[359733148,1746286239245,-767.08,0.00019618,2]
[359733149,1746286239255,-4536.75,0.00019618,2]
[359733150,1746286239264,-450.0,0.00019618,2]
[359733151,1746286239274,-450.0,0.00019618,2]
[359733152,1746286239283,-450.0,0.00019618,2]
[359733153,1746286239293,-450.0,0.00019618,2]
[359733154,1746286239302,-581.52,0.00019618,2]
[359733155,1746286239311,-450.0,0.00019619,2]
[359733156,1746286239320,-450.0,0.00019619,2]
[359733157,1746286239329,-450.0,0.00019619,2]
[359733158,1746286239339,-450.0,0.00019619,2]
[359733159,1746286239348,-450.0,0.00019619,2]
[359733160,1746286239358,-500.0,0.00019619,2]
[359733161,1746286239367,-450.0,0.00019619,2]
[359733162,1746286239376,-450.0,0.00019619,2]
[359733163,1746286239386,-450.0,0.00019619,2]
[359733164,1746286239395,-450.0,0.00019619,2]
[359733165,1746286239404,-450.0,0.00019619,2]
[359733166,1746286239414,-450.0,0.00019619,2]
[359733167,1746286239424,-450.0,0.00019619,2]
[359733169,1746286239435,-450.0,0.00019619,2]
[359733170,1746286239444,-450.0,0.00019619,2]
[359733172,1746286239454,-450.0,0.00019619,2]
[359733174,1746286239463,-450.0,0.00019619,2]
[359733176,1746286239473,-450.0,0.00019619,2]
[359733178,1746286239482,-450.0,0.00019619,2]
[359733180,1746286239491,-450.0,0.00019619,2]
[359733182,1746286239500,-450.0,0.00019619,2]
[359733184,1746286239510,-450.0,0.00019619,2]
[359733186,1746286239519,-450.0,0.00019619,2]
[359733188,1746286239528,-450.0,0.00019619,2]
[359733190,1746286239538,-450.0,0.00019619,2]
[359733192,1746286239547,-450.0,0.00019619,2]
[359733194,1746286239556,-450.0,0.00019619,2]
[359733196,1746286239565,-450.0,0.00019619,2]
[359733198,1746286239575,-450.0,0.00019619,2]
[359733200,1746286239584,-450.0,0.00019619,2]
[359733202,1746286239593,-450.0,0.00019619,2]
[359733204,1746286239602,-548.4,0.00019619,2]
[359733206,1746286239611,-450.0,0.00019619,2]
[359733208,1746286239620,-393.19971781,0.00019619,2]
[359733210,1746286239630,-450.0,0.00019619,2]
[359733212,1746286239639,-450.0,0.00019619,2]
[359733214,1746286239653,-450.0,0.00019619,2]
[359733216,1746286239663,-450.0,0.00019619,2]
[359733218,1746286239672,-450.0,0.00019619,2]
[359733220,1746286239683,-450.0,0.00019619,2]
[359733222,1746286239693,-450.0,0.00019619,2]
[359733224,1746286239702,-565.01,0.00019619,2]
[359733226,1746286239712,-450.0,0.00019619,2]
[359733228,1746286239723,-450.0,0.00019619,2]
[359733230,1746286239732,-450.0,0.00019619,2]
[359733232,1746286239742,-450.0,0.00019619,2]
[359733234,1746286239751,-450.0,0.00019619,2]
[359733236,1746286239761,-561.61,0.00019619,2]
[359733237,1746286239770,-450.0,0.00019619,2]
[359733238,1746286239779,-450.0,0.00019619,2]
[359733239,1746286239788,-744.51,0.00019619,2]
[359733240,1746286239798,-450.0,0.00019619,2]
[359733241,1746286239807,-450.0,0.00019619,2]
[359733242,1746286239817,-450.0,0.00019619,2]
[359733243,1746286239826,-450.0,0.00019619,2]
[359733244,1746286239835,-450.0,0.00019619,2]
[359733245,1746286239845,-450.0,0.00019619,2]
[359733246,1746286239854,-450.0,0.00019619,2]
[359733247,1746286239864,-450.0,0.00019619,2]
[359733248,1746286239873,-450.0,0.00019619,2]
[359733249,1746286239883,-450.0,0.00019619,2]
[359733250,1746286239893,-450.0,0.00019619,2]
[359733251,1746286239902,-450.0,0.00019619,2]
[359733252,1746286239912,-450.0,0.00019619,2]
[359733253,1746286239921,-493.04,0.00019619,2]
[359733254,1746286239931,-450.0,0.00019619,2]
[359733255,1746286239940,-450.0,0.00019619,2]
[359733256,1746286239950,-561.03,0.00019619,2]
[359733257,1746286239959,-450.0,0.00019619,2]
[359733258,1746286239969,-450.0,0.00019619,2]
[359733259,1746286239979,-450.0,0.00019619,2]
[359733260,1746286239988,-450.0,0.00019619,2]
[359733261,1746286239997,-450.0,0.00019619,2]
[359733262,1746286240007,-617.18,0.00019619,2]
[359733263,1746286240016,-450.0,0.00019619,2]
[359733264,1746286240026,-450.0,0.00019619,2]
[359733265,1746286240035,-459.15454204,0.00019619,2]
[359733266,1746286240045,-450.0,0.00019619,2]
[359733267,1746286240055,-450.0,0.00019619,2]
[359733268,1746286240065,-457.59240809,0.00019619,2]
[359733269,1746286240076,-450.0,0.00019619,2]
[359733270,1746286240085,-450.0,0.00019619,2]
[359733272,1746286240095,-666.97,0.00019619,2]
[359733273,1746286240105,-291.31094517,0.00019619,2]
[359733274,1746286240114,-450.0,0.00019619,2]
[359733275,1746286240124,-450.0,0.00019619,2]
[359733276,1746286240133,-471.56831048,0.00019619,2]
[359733277,1746286240143,-450.0,0.00019619,2]
[359733279,1746286240153,-642.95,0.00019619,2]
[359733280,1746286240163,-450.0,0.00019619,2]
[359733281,1746286240172,-450.0,0.00019619,2]
[359733282,1746286240182,-451.94,0.00019619,2]
[359733283,1746286240192,-450.0,0.00019619,2]
[359733284,1746286240202,-450.0,0.00019619,2]
[359733285,1746286240212,-450.0,0.00019619,2]
[359733286,1746286240221,-450.0,0.00019619,2]
[359733287,1746286240231,-450.0,0.00019619,2]
[359733288,1746286240240,-450.0,0.00019619,2]
[359733289,1746286240250,-450.0,0.00019619,2]
[359733290,1746286240260,-450.0,0.00019619,2]
[359733291,1746286240270,-1072.17,0.00019619,2]
[359733292,1746286240280,-450.0,0.00019619,2]
[359733293,1746286240290,-450.0,0.00019619,2]
[359733294,1746286240299,-4987.1,0.00019619,2]
[359733296,1746286240309,-450.0,0.00019619,2]
[359733297,1746286240319,-550.02,0.00019619,2]
[359733298,1746286240328,-93855.04,0.00019619,2]
[359733299,1746286240338,-450.0,0.00019619,2]
[359733300,1746286240348,-450.0,0.00019619,2]
[359733302,1746286240358,-450.0,0.00019619,2]
[359733304,1746286240367,-450.0,0.00019619,2]
[359733306,1746286240376,-1691.79,0.00019619,2]
[359733307,1746286240386,-450.0,0.00019619,2]
[359733308,1746286240395,-527.09,0.00019619,2]
[359733309,1746286240405,-450.0,0.00019619,2]
[359733310,1746286240414,-4251.57,0.00019619,2]
[359733311,1746286240423,-822.25,0.00019619,2]
[359733312,1746286240433,-450.0,0.00019619,2]
[359733313,1746286240442,-450.0,0.00019619,2]
[359733314,1746286240451,-19659.59,0.00019619,2]
[359733315,1746286240461,-450.0,0.00019619,2]
[359733316,1746286240470,-1371.9,0.00019619,2]
[359733317,1746286240480,-460.29768648,0.00019619,2]
[359733318,1746286240490,-450.0,0.00019619,2]
[359733319,1746286240499,-12922.59,0.00019619,2]
[359733320,1746286240509,-450.0,0.00019619,2]
[359733321,1746286240519,-1059.19,0.00019619,2]
[359733322,1746286240528,-450.0,0.00019619,2]
[359733323,1746286240538,-646.61,0.00019619,2]
[359733324,1746286240547,-450.0,0.00019619,2]
[359733325,1746286240557,-300.0,0.00019619,2]
[359733326,1746286240566,-554.03,0.00019619,2]
[359733327,1746286240576,-450.0,0.00019619,2]
[359733328,1746286240585,-450.0,0.00019619,2]
[359733329,1746286240594,-450.0,0.00019619,2]
[359733330,1746286240604,-450.0,0.00019619,2]
[359733331,1746286240613,-473.26684363,0.00019619,2]
[359733332,1746286240623,-450.0,0.00019619,2]
[359733334,1746286240632,-450.0,0.00019619,2]
[359733335,1746286240643,-816.07,0.00019619,2]
[359733336,1746286240656,-450.0,0.00019619,2]
[359733337,1746286240666,-450.0,0.00019619,2]
[359733338,1746286240675,-450.0,0.00019619,2]
[359733339,1746286240684,-450.0,0.00019619,2]
[359733340,1746286240694,-450.0,0.00019619,2]
[359733341,1746286240704,-450.0,0.00019619,2]
[359733342,1746286240713,-450.0,0.00019619,2]
[359733343,1746286240722,-472.15560293,0.00019619,2]
[359733344,1746286240732,-460.4631633,0.00019619,2]
[359733345,1746286240741,-564.44,0.00019619,2]
[359733346,1746286240751,-450.0,0.00019619,2]
[359733347,1746286240760,-450.0,0.00019619,2]
[359733348,1746286240770,-450.0,0.00019619,2]
[359733349,1746286240779,-450.0,0.00019619,2]
[359733350,1746286240788,-450.0,0.00019619,2]
[359733351,1746286240797,-2319.77,0.00019619,2]
[359733352,1746286240806,-450.0,0.00019619,2]
[359733353,1746286240815,-450.0,0.00019619,2]
[359733354,1746286240825,-450.0,0.00019619,2]
[359733355,1746286240834,-511.81,0.00019619,2]
[359733356,1746286240843,-450.0,0.00019619,2]
[359733357,1746286240852,-1100.11,0.00019619,2]
[359733358,1746286240861,-450.0,0.00019619,2]
[359733359,1746286240870,-450.0,0.00019619,2]
[359733360,1746286240879,-450.0,0.00019619,2]
[359733361,1746286240889,-1162.02,0.00019619,2]
[359733362,1746286240898,-502.46,0.00019619,2]
[359733363,1746286240908,-450.0,0.00019619,2]
[359733364,1746286240917,-450.0,0.00019619,2]
[359733365,1746286240926,-291.29844983,0.00019645,2]
[359733366,1746286240935,-170.11498695,0.00019646,2]
[359733367,1746286240944,-999.0,0.00019671,2]
[359733368,1746286240954,-500.0,0.00019673,2]
[359733369,1746286240963,-500.0,0.00019673,2]
[359733370,1746286240972,-500.0,0.00019673,2]
[359733371,1746286240981,-500.0,0.00019673,2]
[359733372,1746286240990,-500.0,0.00019673,2]
[359733373,1746286241000,-500.0,0.00019673,2]
[359733374,1746286241009,-500.84285818,0.00019673,2]
[359733375,1746286241020,-500.0,0.00019673,2]
[359733376,1746286241030,-500.0,0.00019673,2]
[359733377,1746286241039,-500.0,0.00019673,2]
[359733378,1746286241049,-291.29844983,0.00019688,2]
[359733379,1746286241058,-170.11498695,0.00019688,2]
[359733380,1746286241069,-701.0,0.000197,2]
[359733381,1746286241078,-1000.0,0.000197,2]
[359733382,1746286241087,-1000.0,0.000197,2]
[359733383,1746286241097,-1000.0,0.000197,2]
[359733384,1746286241106,-1001.0,0.000197,2]
[359733385,1746286241115,-450.0,0.00019709,2]
[359733386,1746286241124,-450.0,0.00019709,2]
[359733387,1746286241134,-592.31,0.00019709,2]
[359733388,1746286241143,-450.0,0.00019709,2]
[359733389,1746286241153,-450.0,0.00019709,2]
[359733390,1746286241162,-1009.29,0.00019709,2]
[359733391,1746286241171,-450.0,0.00019709,2]
[359733392,1746286241181,-450.0,0.00019709,2]
[359733393,1746286241190,-450.0,0.00019709,2]
[359733394,1746286241200,-450.0,0.00019709,2]
[359733395,1746286241210,-551.01,0.00019709,2]
[359733396,1746286241220,-574.91,0.00019709,2]
[359733397,1746286241230,-450.0,0.00019709,2]
[359733398,1746286241241,-1504.06,0.00019709,2]
[359733399,1746286241251,-450.0,0.00019709,2]
[359733400,1746286241261,-450.0,0.00019709,2]
[359733401,1746286241271,-709.68,0.00019709,2]
[359733402,1746286241281,-450.0,0.00019709,2]
[359733403,1746286241290,-450.0,0.00019709,2]
[359733404,1746286241299,-573.69,0.00019709,2]
[359733405,1746286241309,-1111.51,0.00019709,2]
[359733406,1746286241318,-450.0,0.00019709,2]
[359733407,1746286241328,-537.0,0.00019709,2]
[359733408,1746286241337,-450.0,0.00019709,2]
[359733409,1746286241347,-559.15,0.00019709,2]
[359733410,1746286241355,-450.0,0.00019709,2]
[359733411,1746286241365,-450.0,0.00019709,2]
[359733412,1746286241374,-450.0,0.00019709,2]
[359733413,1746286241383,-450.0,0.00019709,2]
[359733414,1746286241393,-450.0,0.00019709,2]
[359733415,1746286241402,-813.98,0.00019709,2]
[359733416,1746286241412,-624.6,0.00019709,2]
[359733417,1746286241421,-804.51,0.00019709,2]
[359733418,1746286241430,-1646.71,0.00019709,2]
[359733419,1746286241439,-450.0,0.00019709,2]
[359733420,1746286241448,-630.55,0.00019709,2]
[359733421,1746286241458,-470.42539181,0.00019709,2]
[359733422,1746286241467,-550.95,0.00019709,2]
[359733423,1746286241476,-450.0,0.00019709,2]
[359733424,1746286241486,-678.21,0.00019709,2]
[359733425,1746286241495,-1094.74,0.00019709,2]
[359733426,1746286241504,-450.0,0.00019709,2]
[359733427,1746286241513,-450.0,0.00019709,2]
[359733428,1746286241522,-450.0,0.00019709,2]
[359733429,1746286241531,-450.0,0.00019709,2]
[359733430,1746286241541,-450.0,0.00019709,2]
[359733431,1746286241550,-868.07,0.00019709,2]
[359733432,1746286241559,-450.0,0.00019709,2]
[359733433,1746286241569,-457.42,0.00019709,2]
[359733434,1746286241578,-450.0,0.00019709,2]
[359733435,1746286241588,-1300.11,0.00019709,2]
[359733436,1746286241597,-790.31,0.00019709,2]
[359733437,1746286241606,-450.0,0.00019709,2]
[359733438,1746286241615,-523.64,0.00019709,2]
[359733439,1746286241624,-1478.28,0.00019709,2]
[359733440,1746286241634,-627.18,0.00019709,2]
[359733441,1746286241645,-450.0,0.00019709,2]
[359733442,1746286241655,-453.22,0.00019709,2]
[359733443,1746286241665,-864.85,0.00019709,2]
[359733444,1746286241674,-450.0,0.00019709,2]
[359733445,1746286241683,-747.18,0.00019709,2]
[359733446,1746286241694,-450.0,0.00019709,2]
[359733447,1746286241703,-450.0,0.00019709,2]
[359733448,1746286241713,-450.0,0.00019709,2]
[359733449,1746286241725,-450.0,0.00019709,2]
[359733450,1746286241735,-450.0,0.00019709,2]
[359733451,1746286241745,-450.0,0.00019709,2]
[359733452,1746286241754,-450.0,0.00019709,2]
[359733453,1746286241764,-684.35,0.00019709,2]
[359733454,1746286241775,-2344.17,0.00019709,2]
[359733455,1746286241784,-450.0,0.00019709,2]
[359733456,1746286241793,-1021.11,0.00019709,2]
[359733457,1746286241804,-618.73,0.00019709,2]
[359733458,1746286241815,-2162.94,0.00019709,2]
[359733459,1746286241826,-541.41,0.00019709,2]
[359733460,1746286241835,-291.29844983,0.0001973,2]
[359733461,1746286241844,-170.11498695,0.00019731,2]
[359733462,1746286241855,-58319.65304718,0.0001975,2]
[359733463,1746286241864,-291.29844983,0.00019773,2]
[359733464,1746286241874,-170.11498695,0.00019773,2]
[359733465,1746286241883,-450.0,0.00019776,2]
[359733466,1746286241893,-450.0,0.00019776,2]
[359733467,1746286241903,-451.40881658,0.00019776,2]
[359733468,1746286241913,-566.16245869,0.00019776,2]
[359733469,1746286241923,-450.0,0.00019776,2]
[359733470,1746286241932,-450.87,0.00019776,2]
[359733471,1746286241942,-465.85790691,0.00019776,2]
[359733472,1746286241952,-290.0,0.00019776,2]
[359733473,1746286241961,-1270.6086697,0.00019799,2]
[359733474,1746286241972,-500.0,0.000198,2]
[359733475,1746286241982,-291.29844983,0.00019815,2]
[359733476,1746286241991,-170.11498695,0.00019815,2]
[359733477,1746286242001,-581.0,0.00019836,2]
[359733478,1746286242011,-2000.0,0.0001984,2]
[359733479,1746286242021,-291.29844983,0.00019858,2]
[359733480,1746286242030,-170.11498695,0.00019858,2]
[359733481,1746286242040,-500.0,0.00019873,2]
[359733482,1746286242049,-501.21994559,0.00019873,2]
[359733483,1746286242059,-500.0,0.00019873,2]
[359733484,1746286242068,-532.23391832,0.00019873,2]
[359733485,1746286242077,-500.0,0.00019873,2]
[359733486,1746286242087,-502.58925245,0.00019873,2]
[359733487,1746286242096,-500.0,0.00019873,2]
[359733488,1746286242106,-500.0,0.00019873,2]
[359733489,1746286242116,-160.45164529,0.00019873,2]
[359733490,1746286242125,-539.24803438,0.00019873,2]
[359733491,1746286242135,-500.0,0.00019873,2]
[359733492,1746286242144,-209.60510291,0.00019873,2]
[359733493,1746286242154,-517.26161729,0.00019873,2]
[359733494,1746286242164,-502.98408913,0.00019873,2]
[359733495,1746286242173,-962.97134697,0.00019892,2]
[359733496,1746286242183,-450.0,0.00019892,2]
[359733497,1746286242193,-450.0,0.00019892,2]
[359733498,1746286242202,-638.67,0.00019892,2]
[359733499,1746286242211,-450.0,0.00019892,2]
[359733500,1746286242222,-450.0,0.00019892,2]
[359733501,1746286242231,-450.0,0.00019892,2]
[359733502,1746286242240,-450.0,0.00019892,2]
[359733503,1746286242249,-450.0,0.00019892,2]
[359733504,1746286242258,-450.0,0.00019892,2]
[359733505,1746286242267,-450.0,0.00019892,2]
[359733506,1746286242276,-397.63529192,0.00019892,2]
[359733507,1746286242285,-450.0,0.00019892,2]
[359733508,1746286242294,-450.0,0.00019892,2]
[359733509,1746286242303,-960.46,0.00019892,2]
[359733510,1746286242312,-450.0,0.00019892,2]
[359733511,1746286242322,-698.38,0.00019892,2]
[359733512,1746286242331,-450.0,0.00019892,2]
[359733513,1746286242340,-450.9,0.00019892,2]
[359733514,1746286242349,-522.05,0.00019892,2]
[359733515,1746286242359,-450.0,0.00019892,2]
[359733516,1746286242368,-450.0,0.00019892,2]
[359733517,1746286242377,-450.0,0.00019892,2]
[359733518,1746286242386,-450.0,0.00019892,2]
[359733519,1746286242395,-450.0,0.00019892,2]
[359733520,1746286242404,-450.0,0.00019892,2]
[359733521,1746286242413,-480.32,0.00019892,2]
[359733522,1746286242422,-450.0,0.00019892,2]
[359733523,1746286242432,-450.0,0.00019892,2]
[359733524,1746286242442,-450.0,0.00019892,2]
[359733525,1746286242452,-450.0,0.00019892,2]
[359733526,1746286242461,-450.0,0.00019892,2]
[359733527,1746286242472,-450.0,0.00019892,2]
[359733528,1746286242484,-450.0,0.00019892,2]
[359733529,1746286242493,-450.0,0.00019892,2]
[359733530,1746286242502,-450.0,0.00019892,2]
[359733531,1746286242512,-450.0,0.00019892,2]
[359733532,1746286242523,-4207.86,0.00019892,2]
[359733533,1746286242532,-643.73,0.00019892,2]
[359733534,1746286242541,-676.55,0.00019892,2]
[359733535,1746286242550,-450.0,0.00019892,2]
[359733536,1746286242559,-450.0,0.00019892,2]
[359733537,1746286242568,-450.0,0.00019892,2]
[359733538,1746286242577,-450.0,0.00019892,2]
[359733539,1746286242587,-450.0,0.00019892,2]
[359733540,1746286242595,-450.0,0.00019892,2]
[359733541,1746286242604,-450.0,0.00019892,2]
[359733542,1746286242613,-450.0,0.00019892,2]
[359733543,1746286242622,-507.99,0.00019892,2]
[359733544,1746286242631,-450.0,0.00019892,2]
[359733545,1746286242640,-462.93,0.00019892,2]
[359733546,1746286242652,-450.0,0.00019892,2]
[359733547,1746286242662,-854.72,0.00019892,2]
[359733548,1746286242671,-19705.7,0.00019892,2]
[359733549,1746286242681,-450.0,0.00019892,2]
[359733550,1746286242690,-2244.42,0.00019892,2]
[359733551,1746286242699,-450.0,0.00019892,2]
[359733552,1746286242709,-499.46,0.00019892,2]
[359733553,1746286242718,-450.0,0.00019892,2]
[359733554,1746286242728,-450.0,0.00019892,2]
[359733555,1746286242737,-450.0,0.00019892,2]
[359733556,1746286242747,-450.0,0.00019892,2]
[359733557,1746286242756,-622.02,0.00019892,2]
[359733558,1746286242766,-1388.75,0.00019892,2]
[359733559,1746286242775,-450.0,0.00019892,2]
[359733560,1746286242784,-450.0,0.00019892,2]
[359733561,1746286242793,-450.0,0.00019892,2]
[359733562,1746286242803,-1677.02,0.00019892,2]
[359733563,1746286242813,-450.0,0.00019892,2]
[359733564,1746286242823,-450.0,0.00019892,2]
[359733565,1746286242833,-450.0,0.00019892,2]
[359733566,1746286242843,-670.86,0.00019892,2]
[359733567,1746286242852,-1038.07,0.00019892,2]
[359733568,1746286242861,-450.0,0.00019892,2]
[359733569,1746286242871,-450.0,0.00019892,2]
[359733570,1746286242880,-450.0,0.00019892,2]
[359733571,1746286242889,-450.0,0.00019892,2]
[359733572,1746286242900,-999.0,0.00019892,2]
[359733573,1746286242909,-450.0,0.00019892,2]
[359733574,1746286242919,-450.0,0.00019892,2]
[359733575,1746286242928,-647.64,0.00019892,2]
[359733576,1746286242938,-450.0,0.00019892,2]
[359733577,1746286242947,-498.63,0.00019892,2]
[359733579,1746286242957,-450.0,0.00019892,2]
[359733580,1746286242966,-450.0,0.00019892,2]
[359733581,1746286242975,-2328.35,0.00019892,2]
[359733582,1746286242984,-3639.21,0.00019892,2]
[359733583,1746286242993,-450.0,0.00019892,2]
[359733584,1746286243003,-467.3,0.00019892,2]
[359733585,1746286243012,-3593.04,0.00019892,2]
[359733586,1746286243021,-450.0,0.00019892,2]
[359733587,1746286243030,-450.0,0.00019892,2]
[359733588,1746286243039,-1099.83,0.00019892,2]
[359733589,1746286243049,-450.0,0.00019892,2]
[359733590,1746286243059,-530.7,0.00019892,2]
[359733591,1746286243068,-490.55,0.00019892,2]
[359733592,1746286243078,-450.0,0.00019892,2]